fUST/lending_fUST_20240428
["ID","MTS","AMOUNT","RATE_DAILY","PERIOD"]
[323758166,1714248647629,-151.0,0.000219,2]
[323758167,1714248647639,-151.0,0.000219,2]
[323758168,1714248647648,-151.0,0.000219,2]
[323758169,1714248647658,-151.0,0.000219,2]
[323758170,1714248647667,-151.0,0.000219,2]
[323758171,1714248647677,-1277.738128,0.000219,2]
[323758172,1714248647686,-1277.738128,0.000219,2]
[323758173,1714248647695,-1277.738128,0.000219,2]
[323758174,1714248647705,-1277.738128,0.000219,2]
[323758175,1714248647715,-151.0,0.000219,2]
[323758176,1714248647724,-151.0,0.000219,2]
[323758177,1714248647734,-1095.221728,0.000219,2]
[323758178,1714248647743,-1095.221728,0.000219,2]
[323758179,1714248647753,-1095.221728,0.000219,2]
[323758180,1714248647762,-1095.221728,0.000219,2]
[323758181,1714248647772,-151.0,0.000219,2]
[323758182,1714248647783,-151.0,0.000219,2]
[323758183,1714248647792,-151.0,0.000219,2]
[323758184,1714248647801,-1233.314135,0.000219,2]
[323758185,1714248647811,-1233.314135,0.000219,2]
[323758186,1714248647821,-151.0,0.000219,2]
[323758187,1714248647830,-1233.314135,0.000219,2]
[323758188,1714248647840,-151.0,0.000219,2]
[323758189,1714248647850,-1233.314135,0.000219,2]
[323758190,1714248647860,-261.249387,0.000219,2]
[323758191,1714248647870,-903.588444,0.000219,2]
[323758192,1714248647881,-903.588444,0.000219,2]
[323758193,1714248647891,-903.588444,0.000219,2]
[323758194,1714248647901,-903.588438,0.000219,2]
[323758195,1714248647912,-1169.412167,0.000219,2]
[323758196,1714248647921,-1169.412167,0.000219,2]
[323758197,1714248647931,-1169.412167,0.000219,2]
[323758198,1714248647941,-1169.412172,0.000219,2]
[323758199,1714248647951,-369.378018,0.000219,2]
[323758200,1714248647962,-369.378018,0.000219,2]
[323758201,1714248647971,-369.378018,0.000219,2]
[323758202,1714248647981,-151.0,0.000219,2]
[323758203,1714248647991,-151.0,0.000219,2]
[323758204,1714248648001,-151.0,0.000219,2]
[323758205,1714248648010,-153.6757428,0.00021914,2]
[323758206,1714248648020,-10000.0,0.00021918,2]
[323758207,1714248648031,-151.0,0.00021918,2]
[323758208,1714248648042,-151.0,0.00021918,2]
[323758209,1714248648053,-223.984602,0.00021918,2]
[323758210,1714248648062,-151.0,0.00021918,2]
[323758211,1714248648072,-151.0,0.00021918,2]
[323758212,1714248648082,-151.0,0.00021918,2]
[323758213,1714248648093,-306.739279,0.00021918,2]
[323758214,1714248648103,-306.739279,0.00021918,2]
[323758215,1714248648113,-151.0,0.00021918,2]
[323758216,1714248648124,-151.0,0.00021918,2]
[323758217,1714248648134,-1277.738128,0.00021918,2]
[323758218,1714248648143,-1277.738128,0.00021918,2]
[323758219,1714248648154,-151.0,0.00021918,2]
[323758220,1714248648164,-1095.221728,0.00021918,2]
[323758221,1714248648173,-1095.221728,0.00021918,2]
[323758222,1714248648183,-151.0,0.00021918,2]
[323758223,1714248648193,-1233.314135,0.00021918,2]
[323758224,1714248648203,-151.0,0.00021918,2]
[323758225,1714248648213,-1233.314135,0.00021918,2]
[323758226,1714248648222,-482.14308,0.00021942,2]
[323758227,1714248648232,-482.14308,0.00021942,2]
[323758228,1714248648242,-151.0,0.00021942,2]
[323758229,1714248648251,-369.378018,0.00021942,2]
[323758230,1714248648261,-1238.583036,0.00021942,2]
[323758231,1714248648270,-557.829899,0.00021942,2]
[323758232,1714248648280,-306.0,0.00021948,2]
[323758233,1714248648290,-153.0,0.00021948,2]
[323758234,1714248648299,-159.13598878,0.00022,2]
[323758235,1714248648309,-1435.8,0.0002204,3]
[323758236,1714248648318,-191.815976,0.00022206,2]
[323758237,1714248648328,-191.815976,0.00022206,2]
[323758238,1714248648337,-1238.583036,0.00022206,2]
[323758239,1714248648346,-557.829899,0.00022206,2]
[323758240,1714248648356,-167.323085,0.00022206,2]
[323758241,1714248648365,-151.0,0.0002223,2]
[323758242,1714248648374,-1277.738128,0.0002223,2]
[323758243,1714248648383,-1277.738135,0.0002223,2]
[323758244,1714248648393,-151.0,0.0002223,2]
[323758245,1714248648402,-1095.221728,0.0002223,2]
[323758246,1714248648411,-1095.22173,0.0002223,2]
[323758247,1714248648420,-151.0,0.0002223,2]
[323758248,1714248648429,-990.47243621,0.00022494,2]
[323758249,1714248648439,-151.0,0.00022494,2]
[323758250,1714248648448,-1435.8,0.0002286,3]
[323758251,1714248648457,-713.83575721,0.00023,2]
[323758252,1714248648466,-306.739279,0.00023566,2]
[323758253,1714248648475,-306.739279,0.00023566,2]
[323758254,1714248648488,-150.0,0.00023576,2]
[323758255,1714248648507,-417.0,0.00023576,2]
[323758256,1714248648515,-150.0,0.00023576,2]
[323758257,1714248648525,-1435.8,0.0002369,3]
[323758258,1714248648540,-151.0,0.0002369,2]
[323758259,1714248648551,-151.0,0.0002369,2]
[323758260,1714248648560,-151.0,0.0002369,2]
[323758261,1714248648569,-151.0,0.0002369,2]
[323758262,1714248648578,-482.14308,0.0002369,2]
[323758263,1714248648587,-482.143083,0.0002369,2]
[323758264,1714248648597,-151.0,0.0002369,2]
[323758265,1714248648606,-1613.0,0.0002372,2]
[323758266,1714248648614,-151.0,0.000239,2]
[323758267,1714248648624,-151.0,0.000239,2]
[323758268,1714248648633,-191.815976,0.000239,2]
[323758269,1714248648642,-191.815976,0.000239,2]
[323758270,1714248648651,-5243.47238656,0.000239,2]
[323758271,1714248648660,-153.0,0.0002446,2]
[323758272,1714248648669,-153.0,0.00024488,2]
[323758273,1714248648678,-721.91344597,0.000245,2]
[323758274,1714248648687,-1435.8,0.0002452,3]
[323758275,1714248648695,-500.0,0.00024657,2]
[323758276,1714248648705,-999.0,0.00024657,2]
[323758277,1714248648714,-380.0,0.00024658,2]
[323758278,1714248648723,-500.0,0.00024658,2]
[323758279,1714248648850,-500.0,0.00024658,2]
[323758280,1714248648860,-369.378018,0.00024658,2]
[323758281,1714248648870,-154.81422293,0.00025,2]
[323758282,1714248648879,-154.81422293,0.00025,2]
[323758283,1714248648889,-154.99041713,0.00025,2]
[323758284,1714248648899,-1016.03721505,0.00025,2]
[323758285,1714248648908,-151.0,0.00025,2]
[323758286,1714248648917,-306.739279,0.00025,2]
[323758287,1714248648926,-306.739279,0.00025,2]
[323758288,1714248648936,-1435.8,0.0002535,3]
[323758289,1714248648945,-1189.59448898,0.00025573,2]
[323758290,1714248648954,-191.815976,0.00025753,2]
[323758291,1714248648964,-191.815976,0.00025753,2]
[323758292,1714248648974,-999.0,0.00025753,4]
[323758293,1714248648983,-594.32596139,0.000259,10]
[323758294,1714248648993,-151.0,0.000259,2]
[323758295,1714248649002,-151.0,0.000259,2]
[323758296,1714248649011,-151.0,0.000259,2]
[323758297,1714248649021,-151.0,0.000259,2]
[323758298,1714248649031,-154.81422293,0.00026,2]
[323758299,1714248649042,-693.03286136,0.00026,2]
[323758300,1714248649051,-1000.0,0.00026,2]
[323758301,1714248649060,-2258.0,0.00026092,2]
[323758302,1714248649069,-1435.8,0.0002618,3]
[323758303,1714248649079,-406.00916,0.00026515,2]
[323758304,1714248649088,-153.0,0.00026529,2]
[323758305,1714248649098,-150.0,0.00026576,2]
[323758306,1714248649107,-417.0,0.00026576,2]
[323758307,1714248649118,-150.0,0.00026576,2]
[323758308,1714248649128,-519.27847007,0.000266,2]
[323758309,1714248649139,-10000.0,0.00026767,2]
[323758310,1714248649148,-999.0,0.00026849,6]
[323758311,1714248649160,-648.47972445,0.00026852,2]
[323758312,1714248649170,-1312.11264804,0.00026899,2]
[323758313,1714248649180,-207.94518351,0.00026988,2]
[323758314,1714248649189,-191.81320399,0.00026989,2]
[323758315,1714248649200,-154.92253873,0.00026999,2]
[323758316,1714248649211,-97912.92203377,0.00027,2]
[323758328,1714249748105,-154.81422293,0.00014727,2]
[323758329,1714249748126,-436.62409463,0.00016122,2]
[323758365,1714249832755,-2188.73430382,0.00016122,2]
[323758367,1714249832764,-363.86320338,0.00016122,2]
[323758368,1714249832774,-165.96531035,0.00016122,2]
[323758370,1714249832783,-159.14208781,0.000164,2]
[323758372,1714249832792,-272.70165246,0.00018242,2]
[323758374,1714249832803,-306.68470932,0.00018243,2]
[323758375,1714249832813,-154.84515175,0.00018243,2]
[323758377,1714249832823,-300.0,0.00018244,2]
[323758379,1714249832832,-300.0,0.00018244,2]
[323758380,1714249832842,-329.60850461,0.00018245,2]
[323758397,1714249832973,-1518.48172937,0.00018245,2]
[323758452,1714249838257,-280.68822047,0.00016122,2]
[323758453,1714249838266,-657.56177953,0.00018245,2]
[323758454,1714249838319,-997.84593999,0.00018245,2]
[323758455,1714249838330,-3193.80240983,0.00018245,2]
[323758480,1714249840454,-1791.08962887,0.00018245,2]
[323758481,1714249840467,-16411.6100078,0.00018245,2]
[323758482,1714249840476,-1612.21294457,0.0001831,2]
[323758483,1714249840486,-431.3,0.0001841,3]
[323758484,1714249840496,-603.57234398,0.000185,2]
[323758485,1714249840505,-166.666666,0.00018747,2]
[323758487,1714249840515,-189.30063706,0.0001897,2]
[323758488,1714249840524,-160.045651,0.00019178,2]
[323758489,1714249840536,-160.539391,0.00019178,2]
[323758490,1714249840545,-431.3,0.0001919,3]
[323758491,1714249840555,-4246.7987644,0.00019898,2]
[323758492,1714249840564,-420.0,0.00019902,2]
[323758493,1714249840573,-431.3,0.0001997,3]
[323758494,1714249840583,-257.29627275,0.00019999,2]
[323758495,1714249840592,-461.92467003,0.00019999,2]
[323758496,1714249840601,-517.31861838,0.00019999,2]
[323758497,1714249840610,-500.0,0.00019999,2]
[323758498,1714249840619,-568.88864584,0.00019999,2]
[323758499,1714249840629,-500.0,0.00019999,2]
[323758500,1714249840638,-500.0,0.00019999,2]
[323758501,1714249840647,-610.27897714,0.00019999,2]
[323758502,1714249840656,-620.84236101,0.00019999,2]
[323758503,1714249840665,-500.0,0.00019999,2]
[323758504,1714249840675,-204.18543431,0.00019999,2]
[323758505,1714249840684,-154.81422293,0.0002,2]
[323758506,1714249840693,-463.74609774,0.0002,2]
[323758507,1714249840702,-400.0,0.0002,2]
[323758508,1714249840712,-329.804469,0.0002,2]
[323758509,1714249840721,-18436.90886687,0.0002,2]
[323758562,1714249843353,-31327.72456257,0.0002,2]
[323758568,1714249843410,-960.85532302,0.0002,2]
[323758571,1714249843423,-29274.51124754,0.0002,2]
[323758573,1714249843432,-67387.81511513,0.0002,2]
[323758575,1714249843442,-154.81422293,0.0002,2]
[323758577,1714249843452,-200.0,0.0002,2]
[323758579,1714249843461,-420.0,0.00020069,2]
[323758581,1714249843470,-1311.95535224,0.00020398,2]
[323758583,1714249843480,-2000.0,0.00020502,2]
[323758585,1714249843490,-162.32899898,0.00020601,2]
[323758587,1714249843500,-459.88228259,0.00020601,2]
[323758589,1714249843510,-431.3,0.0002076,3]
[323758591,1714249843520,-153.0,0.00021127,2]
[323758595,1714249843531,-150.0,0.00021298,2]
[323758599,1714249843539,-417.0,0.00021298,2]
[323758603,1714249843548,-431.3,0.0002154,3]
[323758605,1714249843557,-160.314911,0.00021622,2]
[323758607,1714249843567,-1612.21294453,0.00021707,2]
[323758609,1714249843579,-587.0,0.0002171,2]
[323758611,1714249843603,-884.01038673,0.00021899,2]
[323758613,1714249843616,-997.8428895,0.00021918,2]
[323758615,1714249843626,-159.13598878,0.00022,2]
[323758617,1714249843635,-587.0,0.00022076,2]
[323758619,1714249843644,-431.3,0.0002232,3]
[323758621,1714249843653,-713.83575721,0.00023,2]
[323758623,1714249843662,-431.3,0.000231,3]
[323758624,1714249843671,-181.54107532,0.0002315,2]
[323758627,1714249843680,-431.3,0.0002388,3]
[323758640,1714249843788,-823.0,0.00024283,2]
[323758642,1714249843799,-150.0,0.00024298,2]
[323758644,1714249843809,-417.0,0.00024298,2]
[323758645,1714249843818,-380.0,0.00024658,2]
[323758647,1714249843827,-431.3,0.0002466,3]
[323758649,1714249843836,-1747.82412885,0.000249,2]
[323758651,1714249843846,-154.81422293,0.00025,2]
[323758654,1714249843856,-154.81422293,0.00025,2]
[323758656,1714249843865,-1612.21294453,0.00025105,2]
[323758658,1714249843874,-431.3,0.0002545,3]
[323758660,1714249843883,-623.81298862,0.00025562,2]
[323758662,1714249843892,-999.0,0.00025752,2]
[323758664,1714249843901,-693.03286136,0.00026,2]
[323758666,1714249843909,-154.81422293,0.00026,2]
[323758668,1714249843918,-431.3,0.0002623,3]
[323758670,1714249843927,-1152.0,0.00026712,2]
[323758672,1714249843937,-620.19064943,0.0002684,2]
[323758674,1714249843945,-999.0,0.00026848,4]
[323758676,1714249843955,-600.0,0.000269,2]
[323758678,1714249843964,-500.0,0.00026942,2]
[323758680,1714249843973,-66506.07621392,0.00026954,2]
[323758738,1714250077349,1000.0,0.000266,120]
[323758739,1714250298749,1001.0,0.000266,120]
[323758740,1714250322613,689.0,0.000266,120]
[323758741,1714250590113,900.0,0.00012506,2]
[323758742,1714250692551,1500.0,0.00011505,2]
[323758743,1714250692584,455.3744156,0.00011505,2]
[323758744,1714250733215,363.86320338,0.00011505,2]
[323758745,1714250735440,3680.76238102,0.00011505,2]
[323758746,1714250949128,-300.0,0.00011494,2]
[323758747,1714250949148,-300.0,0.00011494,2]
[323758748,1714250949168,-459.94893698,0.00011494,2]
[323758749,1714250949187,-5805.1787687,0.00011494,2]
[323758750,1714250949207,-526.63352259,0.00011495,2]
[323758751,1714250949226,-7870.62977803,0.00011495,2]
[323758752,1714250949247,-212.18025179,0.00011496,2]
[323758753,1714250949267,-2625.35839845,0.00011496,2]
[323758754,1714250949287,-59189.32928802,0.00011497,2]
[323758755,1714250949308,-15512.81374591,0.00011505,2]
[323758756,1714250949327,-363.86320338,0.00011505,2]
[323758757,1714250949348,-4584.7088171,0.00012506,2]
[323758758,1714250949368,-420.0,0.00012624,2]
[323758759,1714250949388,-420.0,0.00012643,2]
[323758760,1714250949407,-1042.16821193,0.000129,2]
[323758761,1714250949426,-1907.99962832,0.00013449,2]
[323758762,1714250949446,-161.30806049,0.00013565,2]
[323758763,1714250949465,-166.666666,0.00013699,2]
[323758764,1714250949485,-283.0,0.00013866,2]
[323758765,1714250949505,-587.0,0.00013908,2]
[323758766,1714250949525,-751.2106065,0.00015299,2]
[323758767,1714250964119,-363.86320338,0.00011505,2]
[323758768,1714250964138,-13427.58089917,0.00011505,2]
[323758769,1714250964158,-71.7893935,0.00015299,2]
[323758770,1714250964178,-532.23002128,0.00015789,2]
[323758771,1714250970103,-10948.27282,0.00011504,2]
[323758803,1714251032421,-2625.35839845,0.00011502,2]
[323758804,1714251032430,-319.47439779,0.00011503,2]
[323758805,1714251032439,-300.0,0.00011503,2]
[323758806,1714251032448,-334.27940594,0.00011505,2]
[323758807,1714251032458,-420.0,0.00012653,2]
[323758808,1714251032467,-587.0,0.00013919,2]
[323758809,1714251032476,-823.0,0.0001531,2]
[323758810,1714251032486,-509.93819064,0.00015789,2]
[323758811,1714251032495,-272.70165246,0.000165,2]
[323758812,1714251032503,-1152.0,0.00016842,2]
[323758813,1714251032512,-155.49605131,0.00018245,2]
[323758814,1714251032521,-320.45168475,0.00018245,2]
[323758815,1714251032530,-161.8,0.0001849,3]
[323758816,1714251032540,-603.57234398,0.000185,2]
[323758817,1714251032549,-1613.0,0.00018526,2]
[323758818,1714251032559,-189.30063706,0.0001897,2]
[323758819,1714251032568,-238.23958198,0.00019,2]
[323758820,1714251032577,-160.06108,0.00019178,2]
[323758821,1714251032586,-160.314911,0.00019178,2]
[323758822,1714251032595,-161.8,0.0001926,3]
[323758823,1714251032605,-1526.39970264,0.00019898,2]
[323758824,1714251032614,-542.59246717,0.000199,2]
[323758825,1714251032623,-161.30806048,0.000199,2]
[323758826,1714251032632,-2000.0,0.000199,2]
[323758827,1714251032642,-1081.21189108,0.00019998,2]
[323758828,1714251032651,-530.84009659,0.00019998,2]
[323758829,1714251032660,-212.12287173,0.00019998,2]
[323758830,1714251032669,-7868.86713707,0.00019998,2]
[323758831,1714251032678,-4176.47807233,0.00019999,2]
[323758832,1714251032690,-154.81422293,0.0002,2]
[323758833,1714251032699,-400.0,0.0002,2]
[323758834,1714251032709,-329.804469,0.0002,2]
[323758835,1714251032718,-241.61171692,0.0002,2]
[323758836,1714251032728,-21563.33778927,0.0002,2]
[323758837,1714251032740,-492.04,0.0002,2]
[323758838,1714251032754,-556.01184672,0.0002,2]
[323758853,1714251038478,-464.28515124,0.00018499,2]
[323758855,1714251038489,-1544.13388645,0.00018499,2]
[323758859,1714251038535,-23202.56267875,0.00018499,2]
[323758966,1714251040784,-425.900005,0.00018499,2]
[323759084,1714251043678,-33552.44756658,0.00018499,2]
[323759085,1714251043688,-189.35393715,0.00019997,2]
[323759086,1714251043697,-57388.61036401,0.0002,2]
[323759088,1714251043706,-67387.81511513,0.0002,2]
[323759089,1714251043715,-154.81422293,0.0002,2]
[323759090,1714251043724,-200.0,0.0002,2]
[323759091,1714251043733,-161.8,0.0002004,3]
[323759092,1714251043744,-1042.16821192,0.00020172,2]
[323759093,1714251043755,-1078.0,0.00020378,2]
[323759095,1714251043764,-161.8,0.0002081,3]
[323759096,1714251043773,-161.8,0.0002159,3]
[323759097,1714251043782,-1526.39970262,0.00021627,2]
[323759099,1714251043793,-417.0,0.00021994,2]
[323759101,1714251043803,-150.0,0.00021994,2]
[323759103,1714251043812,-159.13598878,0.00022,2]
[323759105,1714251043822,-161.8,0.0002236,3]
[323759107,1714251043831,-713.83575721,0.00023,2]
[323759109,1714251043840,-161.8,0.0002314,3]
[323759111,1714251043849,-1278.88574825,0.00023357,2]
[323759210,1714251046495,-247.51395437,0.00023357,2]
[323759211,1714251046507,-161.8,0.0002391,3]
[323759212,1714251046518,-1159.30436615,0.000245,2]
[323759214,1714251250418,680.3068905,0.0001,2]
[323759215,1714251278502,280.68822047,0.0001,2]
[323759216,1714251278649,154.81422193,0.00032236,120]
[323759217,1714251284754,284.93516068,0.0001,2]
[323759218,1714251286726,200.0,0.0001,2]
[323759219,1714251298513,280.68822047,0.0001,2]
[323759220,1714251298588,272.37020844,0.0001,2]
[323759221,1714251302721,200.0,0.0001,2]
[323759222,1714251320723,200.0,0.0001,2]
[323759223,1714251337403,200.0,0.0001,2]
[323759232,1714252032154,-421.14387484,0.00012441,2]
[323759233,1714252032175,-207.99357024,0.00012442,2]
[323759234,1714252032198,-154.81422293,0.00012442,2]
[323759235,1714252032218,-1091.11259634,0.00012442,2]
[323759236,1714252032369,-423.3179575,0.00012443,2]
[323759237,1714252032390,-718.33821317,0.00012913,2]
[323759238,1714252032411,-154.81422293,0.00012913,2]
[323759239,1714252032432,-300.0,0.00012914,2]
[323759240,1714252032453,-1202.83854325,0.00012914,2]
[323759241,1714252032474,-2589.08986255,0.00012915,2]
[323759242,1714252032494,-190.6808952,0.0001292,2]
[323759243,1714252032514,-166.666666,0.00013699,2]
[323759244,1714252032534,-212.504849,0.00013699,2]
[323759245,1714252032554,-610.55988108,0.00013911,2]
[323759246,1714252032574,-928.19592699,0.00014,2]
[323759247,1714252032594,-1576.20153798,0.0001401,2]
[323759248,1714252047101,-300.0,0.00014008,2]
[323759249,1714252172085,-207.99357024,0.00013339,2]
[323759250,1714252172106,-1202.83854325,0.0001334,2]
[323759251,1714252172128,-250.0,0.00013342,2]
[323759252,1714252172149,-927.87368973,0.00014,2]
[323759253,1714252172175,-300.0,0.00014007,2]
[323759254,1714252172202,-300.0,0.00014007,2]
[323759255,1714252172226,-59189.32928802,0.00014007,2]
[323759256,1714252172248,-582.46091248,0.00014008,2]
[323759257,1714252172268,-168.20810345,0.00014008,2]
[323759258,1714252172287,-2587.73245795,0.00014008,2]
[323759259,1714252172307,-19193.57612693,0.00014008,2]
[323759260,1714252172331,-561.15208158,0.00014008,2]
[323759261,1714252172350,-11138.4431222,0.00014008,2]
[323759262,1714252172370,-1090.53074206,0.00014009,2]
[323759263,1714252172389,-154.93797531,0.00014009,2]
[323759264,1714252172408,-200.0,0.0001401,2]
[323759265,1714252172426,-363.86320338,0.0001401,2]
[323759266,1714252172447,-14091.36917023,0.00014011,2]
[323759365,1714252238880,-154.81422293,0.00014006,2]
[323759381,1714252239018,-145.18577707,0.00014006,2]
[323759383,1714252239027,-300.0,0.00014006,2]
[323759385,1714252239036,-2791.21422293,0.00014007,2]
[323759387,1714252239049,-1085.201,0.00014007,2]
[323759391,1714252239076,-7717.07775507,0.00014007,2]
[323759393,1714252239089,-5098.29788949,0.00014007,2]
[323759395,1714252239103,-19193.57612693,0.00014011,2]
[323759397,1714252239112,-200.0,0.00014011,2]
[323759399,1714252239122,-1268.5637123,0.0001409,2]
[323759401,1714252239132,-202.31502218,0.00014999,2]
[323759403,1714252239142,-1224.8055123,0.00015,2]
[323759590,1714252240902,-875.70042673,0.00015,2]
[323759591,1714252240911,-939.04672329,0.00015343,2]
[323759593,1714252240921,-420.0,0.00015344,2]
[323759595,1714252240930,-420.0,0.00015407,2]
[323759597,1714252240940,-272.70165246,0.000165,2]
[323759598,1714252240949,-24900.0,0.00016582,2]
[323759599,1714252240958,-2868.8655512,0.00016735,2]
[323759600,1714252240968,-587.0,0.0001681,2]
[323759601,1714252240977,-587.0,0.00016947,2]
[323759602,1714252240986,-1200.76089313,0.00017547,2]
[323759603,1714252240997,-884.2224895,0.00018319,2]
[323759604,1714252241006,-823.0,0.00018417,2]
[323759605,1714252241015,-150.0,0.0001844,3]
[323759606,1714252241024,-603.57234398,0.000185,2]
[323759607,1714252241033,-823.0,0.00018642,2]
[323759609,1714252241043,-188.92206727,0.00018789,2]
[323759610,1714252241052,-354.43989047,0.00018888,2]
[323759611,1714252241061,-1046.49166199,0.000189,2]
[323759612,1714252241071,-189.30063706,0.0001897,2]
[323759613,1714252241080,-160.595845,0.00019178,2]
[323759614,1714252241091,-160.539391,0.00019178,2]
[323759615,1714252241104,-150.0,0.0001922,3]
[323759616,1714252241113,-540.84997108,0.000199,2]
[323759617,1714252241123,-358.46428214,0.00019999,2]
[323759618,1714252241134,-297.64730627,0.00019999,2]
[323759619,1714252241143,-154.81422293,0.0002,2]
[323759620,1714252241259,-154.81422293,0.0002,2]
[323759621,1714252241269,-400.0,0.0002,2]
[323759622,1714252241278,-329.804469,0.0002,2]
[323759623,1714252241288,-21155.96948468,0.0002,2]
[323759624,1714252241300,-443.85842418,0.0002,2]
[323759625,1714252241312,-45787.98720627,0.0002,2]
[323759626,1714252241321,-45870.29560376,0.0002,2]
[323759654,1714252243738,-500.0,0.0002,2]
[323759655,1714252243751,-5357.35789092,0.0002,2]
[323759667,1714252315660,-802.3617654,0.000275,17]
[323759668,1714252315692,-167.964317,0.00028493,23]
[323759669,1714252315718,-167.964317,0.00028493,34]
[323759670,1714252315742,-167.964317,0.00028493,44]
[323759671,1714252315765,-167.964317,0.00028493,55]
[323759672,1714252315789,-167.964317,0.00028493,66]
[323759673,1714252315813,-167.964317,0.00028493,77]
[323759674,1714252315839,-167.964317,0.00028493,87]
[323759675,1714252315862,-167.964317,0.00028493,98]
[323759676,1714252315886,-167.964317,0.00028493,109]
[323759677,1714252315921,-167.964317,0.00028493,119]
[323759678,1714252315956,-244.32785364,0.0003,30]
[323759679,1714252315987,-202.0,0.00032,15]
[323759680,1714252316016,-712.0,0.00032233,35]
[323759681,1714252316041,-164.0,0.00032233,35]
[323759682,1714252316067,-712.0,0.00032243,35]
[323759683,1714252316092,-164.0,0.00032243,35]
[323759684,1714252316120,-712.0,0.00032253,35]
[323759685,1714252316146,-164.0,0.00032253,35]
[323759686,1714252316180,-999.0,0.00032328,16]
[323759687,1714252316210,-999.0,0.00033424,26]
[323759688,1714252316236,-200.0,0.00033573,120]
[323759689,1714252316422,-500.46359555,0.000338,60]
[323759690,1714252316450,-999.0,0.0003452,28]
[323759691,1714252316477,-564.41061078,0.00035,30]
[323759692,1714252316502,-154.82968734,0.00035,30]
[323759693,1714252316528,-154.82968734,0.00035,15]
[323759694,1714252316552,-999.0,0.00035616,30]
[323759695,1714252316578,-1123.252179,0.00035616,120]
[323759696,1714252316602,-500.0,0.00036,30]
[323759697,1714252316627,-231.20906612,0.00036,30]
[323759698,1714252316653,-500.0,0.000364,30]
[323759699,1714252316679,-613.32516107,0.000364,30]
[323759700,1714252316705,-999.0,0.00036712,32]
[323759701,1714252316732,-150.0,0.000375,32]
[323759702,1714252316758,-999.0,0.00037808,34]
[323759703,1714252316784,-202.0,0.00038,60]
[323759704,1714252316809,-153.32395488,0.00038268,25]
[323759705,1714252316834,-153.32395492,0.00038768,27]
[323759706,1714252316859,-200.0,0.00038882,120]
[323759707,1714252316883,-999.0,0.00038904,36]
[323759708,1714252316909,-153.32395492,0.00039268,29]
[323759709,1714252316934,-215.27634286,0.00039397,30]
[323759710,1714252316963,-500.0,0.00039726,30]
[323759711,1714252316989,-500.0,0.00039726,30]
[323759712,1714252317015,-490.0555475,0.00039726,30]
[323759713,1714252317041,-200.0,0.00039726,30]
[323759714,1714252317068,-500.0,0.00039726,30]
[323759715,1714252317093,-500.0,0.00039726,30]
[323759716,1714252317119,-500.0,0.00039726,30]
[323759717,1714252317147,-500.0,0.00039726,30]
[323759718,1714252317172,-500.0,0.00039726,30]
[323759719,1714252317197,-500.0,0.00039726,30]
[323759720,1714252317222,-500.0,0.00039726,30]
[323759721,1714252317249,-502.72926048,0.00039726,30]
[323759722,1714252317277,-500.0,0.00039726,30]
[323759723,1714252317303,-500.0,0.00039726,30]
[323759724,1714252317327,-500.0,0.00039726,30]
[323759725,1714252317350,-500.0,0.00039726,30]
[323759726,1714252317374,-500.0,0.00039726,30]
[323759727,1714252317398,-500.0,0.00039726,30]
[323759728,1714252317424,-500.60848496,0.00039726,30]
[323759729,1714252317451,-500.0,0.00039726,30]
[323759730,1714252317477,-500.0,0.00039726,30]
[323759731,1714252317502,-500.0,0.00039726,30]
[323759732,1714252317530,-500.0,0.00039726,30]